[Event "Championnat du monde jeunes U10"]
[Date "2024.11.19"]
[White "Chakhalov, Mikael"]
[Black "Skouroupathis, Kyriakos"]
[WhiteElo "1962"]
[BlackElo "1695"]
[Round "5.35"]
[Result "1-0"]
[TimeControl "5400+30"]

1. c4 {[%clk 1:30:54]} 1... e5 {[%clk 1:30:54]} 2. g3 {[%clk 1:31:19]} 2... Nc6
{[%clk 1:31:20]} 3. Bg2 {[%clk 1:31:43]} 3... f5 {[%clk 1:31:44]} 4. Nc3 {[%clk
1:32:03]} 4... Nf6 {[%clk 1:32:10]} 5. d3 {[%clk 1:32:15]} 5... Bb4 {[%clk
1:29:43]} 6. Bd2 {[%clk 1:31:51]} 6... O-O {[%clk 1:28:37]} 7. Nf3 {[%clk
1:31:47]} 7... d5 {[%clk 1:25:05]} 8. cxd5 {[%clk 1:30:23]} 8... Nxd5 {[%clk
1:23:59]} 9. Nxe5 {[%clk 1:21:10]} 9... Nxc3 {[%clk 1:22:59]} 10. bxc3 {[%clk
1:21:28]} 10... Nxe5 {[%clk 1:21:56]} 11. cxb4 {[%clk 1:20:55]} 11... Re8 {[%clk
1:19:11]} 12. O-O {[%clk 1:21:11]} 12... c6 {[%clk 1:19:32]} 13. Bc3 {[%clk
1:19:56]} 13... Qe7 {[%clk 1:17:41]} 14. Re1 {[%clk 1:18:40]} 14... Qd6 {[%clk
1:13:19]} 15. h3 {[%clk 1:13:58]} 15... Be6 {[%clk 1:08:23]} 16. Qd2 {[%clk
1:09:30]} 16... Bd5 {[%clk 1:05:23]} 17. e4 {[%clk 1:08:39]} 17... Be6 18. d4
{[%clk 1:07:43]} 18... Nc4 {[%clk 1:02:57]} 19. Qg5 {[%clk 1:07:50]} 19... g6
{[%clk 1:01:05]} 20. d5 {[%clk 1:06:29]} 20... cxd5 {[%clk 1:00:05]} 21. Qf6
{[%clk 1:06:46]} 21... Re7 {[%clk 0:57:34]} 22. exd5 {[%clk 1:03:36]} 22... Rf8
{[%clk 0:56:48]} 23. Qh4 {[%clk 1:03:50]} 23... Qd8 1-0

[Variant "Standard"]
[Site "Europe Echecs"]

[Event "Championnat du monde jeunes U10"]
[Date "2024.11.19"]
[White "Guirado Lara, Pablo"]
[Black "Megagiannis, Maximos"]
[WhiteElo "1832"]
[BlackElo "1682"]
[Round "5.36"]
[Result "1-0"]
[TimeControl "5400+30"]

1. e4 {[%clk 1:30:59]} 1... c5 {[%clk 1:30:52]} 2. c3 {[%clk 1:31:22]} 2... d5
{[%clk 1:31:13]} 3. e5 {[%clk 1:31:38]} 3... Bf5 {[%clk 1:31:17]} 4. Nf3 {[%clk
1:30:23]} 4... Nc6 {[%clk 1:30:31]} 5. d4 {[%clk 1:28:00]} 5... e6 {[%clk
1:30:49]} 6. a3 {[%clk 1:26:36]} 6... Qb6 {[%clk 1:22:34]} 7. b4 {[%clk
1:24:01]} 7... cxd4 {[%clk 1:21:52]} 8. cxd4 {[%clk 1:24:23]} 8... Rc8 {[%clk
1:19:35]} 9. Qa4 {[%clk 1:06:58]} 9... Be4 {[%clk 1:13:55]} 10. Nbd2 {[%clk
1:02:51]} 10... Ne7 {[%clk 1:10:03]} 11. Bb2 {[%clk 0:57:47]} 11... Nf5 {[%clk
1:08:25]} 12. Be2 {[%clk 0:51:40]} 12... Be7 {[%clk 1:05:24]} 13. g4 {[%clk
0:40:19]} 13... Bxf3 {[%clk 0:59:21]} 14. Nxf3 {[%clk 0:40:21]} 14... Nh4 {[%clk
0:59:34]} 15. Nxh4 {[%clk 0:38:23]} 15... Bxh4 {[%clk 0:58:46]} 16. O-O {[%clk
0:35:36]} 16... O-O {[%clk 0:57:57]} 17. b5 {[%clk 0:24:21]} 17... Na5 {[%clk
0:57:31]} 18. Rac1 {[%clk 0:21:07]} 18... Be7 {[%clk 0:55:12]} 19. Rc3 {[%clk
0:16:26]} 19... Rxc3 {[%clk 0:54:03]} 20. Bxc3 {[%clk 0:16:55]} 20... Nc4 {[%clk
0:54:21]} 21. Bxc4 {[%clk 0:16:52]} 21... dxc4 {[%clk 0:53:31]} 22. Qxc4 {[%clk
0:16:28]} 22... Bxa3 {[%clk 0:53:18]} 23. Ra1 {[%clk 0:15:22]} 23... Qd8 {[%clk
0:50:51]} 24. Rxa3 {[%clk 0:15:45]} 24... Qg5 {[%clk 0:51:11]} 25. Be1 {[%clk
0:14:43]} 25... Qxg4+ {[%clk 0:51:03]} 26. Rg3 {[%clk 0:15:01]} 26... Qe4 {[%clk
0:51:25]} 27. Bb4 {[%clk 0:14:25]} 27... Qb1+ {[%clk 0:50:54]} 28. Kg2 {[%clk
0:14:48]} 28... Qe4+ {[%clk 0:51:16]} 29. f3 {[%clk 0:15:04]} 29... Qb1 {[%clk
0:51:26]} 30. Bxf8 {[%clk 0:15:21]} 30... Qb2+ {[%clk 0:51:30]} 31. Kh1 {[%clk
0:15:13]} 1-0

[Variant "Standard"]
[Site "Europe Echecs"]

[Event "Championnat du monde jeunes U10"]
[Date "2024.11.19"]
[White "Kovacs, Balazs"]
[Black "Golya, David"]
[WhiteElo "1800"]
[BlackElo "1672"]
[Round "5.37"]
[Result "0-1"]
[TimeControl "5400+30"]

1. e4 {[%clk 1:30:58]} 1... c5 {[%clk 1:30:54]} 2. Nf3 {[%clk 1:31:22]} 2... Nc6
{[%clk 1:31:18]} 3. d4 {[%clk 1:31:46]} 3... cxd4 {[%clk 1:31:44]} 4. Nxd4
{[%clk 1:32:09]} 4... e5 {[%clk 1:32:10]} 5. Nb5 {[%clk 1:32:32]} 5... d6 {[%clk
1:32:29]} 6. N1c3 {[%clk 1:32:30]} 6... a6 {[%clk 1:32:54]} 7. Na3 {[%clk
1:32:54]} 7... Be7 {[%clk 1:33:17]} 8. Nc4 {[%clk 1:31:58]} 8... b5 {[%clk
1:33:43]} 9. Ne3 {[%clk 1:32:21]} 9... Nf6 {[%clk 1:34:03]} 10. Ned5 {[%clk
1:30:36]} 10... Be6 {[%clk 1:33:26]} 11. Nxe7 {[%clk 1:19:45]} 11... Qxe7 {[%clk
1:31:44]} 12. Bg5 {[%clk 1:14:23]} 12... O-O {[%clk 1:28:08]} 13. Nd5 {[%clk
1:01:30]} 13... Bxd5 {[%clk 1:20:47]} 14. exd5 {[%clk 1:00:41]} 14... Nb8 {[%clk
1:19:37]} 15. Qf3 {[%clk 0:49:24]} 15... Nbd7 {[%clk 1:17:57]} 16. Be2 {[%clk
0:44:32]} 16... Rac8 {[%clk 1:12:39]} 17. Rc1 {[%clk 0:43:17]} 17... Rc5 {[%clk
1:03:46]} 18. O-O {[%clk 0:40:01]} 18... e4 {[%clk 0:58:48]} 19. Qg3 {[%clk
0:34:41]} 19... Rxd5 {[%clk 0:52:33]} 20. Rfd1 {[%clk 0:33:16]} 20... Qe6 {[%clk
0:43:49]} 21. Bh6 {[%clk 0:22:23]} 21... Ne8 {[%clk 0:42:44]} 22. Bf4 {[%clk
0:12:50]} 22... Rxd1+ {[%clk 0:39:17]} 23. Rxd1 {[%clk 0:13:12]} 23... d5 {[%clk
0:38:46]} 24. a4 {[%clk 0:09:24]} 24... bxa4 {[%clk 0:36:12]} 25. Qa3 {[%clk
0:08:59]} 25... Qc6 {[%clk 0:32:49]} 26. Qc3 {[%clk 0:06:01]} 26... Qxc3 {[%clk
0:30:23]} 27. bxc3 {[%clk 0:06:29]} 27... Nef6 {[%clk 0:30:20]} 28. Ra1 {[%clk
0:05:37]} 28... Nc5 {[%clk 0:27:29]} 29. Bd6 {[%clk 0:05:32]} 29... Rc8 {[%clk
0:27:40]} 30. Bxc5 {[%clk 0:04:16]} 30... Rxc5 {[%clk 0:27:56]} 31. Rxa4 {[%clk
0:04:36]} 31... Rxc3 {[%clk 0:28:02]} 32. Rxa6 {[%clk 0:05:01]} 32... h6 {[%clk
0:28:16]} 33. Ra2 {[%clk 0:05:13]} 33... Kh7 {[%clk 0:26:13]} 34. Kf1 {[%clk
0:05:18]} 34... Kg6 {[%clk 0:24:37]} 35. Ke1 {[%clk 0:05:21]} 35... Kf5 {[%clk
0:23:22]} 36. Kd2 {[%clk 0:05:14]} 36... Rc7 {[%clk 0:23:14]} 37. Ra5 {[%clk
0:04:43]} 37... Ke5 {[%clk 0:22:29]} 38. c4 {[%clk 0:04:09]} 38... Kd4 {[%clk
0:19:03]} 39. cxd5 {[%clk 0:03:54]} 39... Nxd5 {[%clk 0:19:17]} 40. Ra4+ {[%clk
0:03:39]} 40... Ke5 {[%clk 0:18:27]} 41. Bc4 {[%clk 0:02:43]} 41... Nb6 {[%clk
0:18:13]} 42. Ra5+ {[%clk 0:03:07]} 42... Kf6 {[%clk 0:17:49]} 43. Be2 {[%clk
0:02:11]} 43... Nc4+ {[%clk 0:17:20]} 44. Bxc4 {[%clk 0:02:36]} 44... Rxc4
{[%clk 0:17:44]} 45. Ke3 {[%clk 0:03:00]} 45... g5 {[%clk 0:16:33]} 46. g4
{[%clk 0:02:36]} 46... Rc3+ {[%clk 0:13:39]} 47. Kxe4 {[%clk 0:02:55]} 47... Rh3
{[%clk 0:13:49]} 48. Ra6+ {[%clk 0:03:03]} 48... Kg7 {[%clk 0:14:02]} 49. f4
{[%clk 0:01:35]} 49... gxf4 {[%clk 0:14:14]} 50. Kxf4 {[%clk 0:01:58]} 50...
Rxh2 {[%clk 0:14:33]} 51. Kg3 {[%clk 0:01:29]} 51... Rb2 {[%clk 0:13:44]} 52.
Rc6 {[%clk 0:01:37]} 52... Rb3+ {[%clk 0:13:36]} 53. Kf4 {[%clk 0:01:53]} 53...
f6 {[%clk 0:13:14]} 54. Ra6 {[%clk 0:01:34]} 54... Kg6 {[%clk 0:12:46]} 55. Ra5
{[%clk 0:01:37]} 55... Rb1 {[%clk 0:11:53]} 56. Kf3 {[%clk 0:01:26]} 56... Re1
{[%clk 0:11:35]} 57. Kf4 {[%clk 0:01:28]} 57... Re5 {[%clk 0:10:20]} 58. Ra8
{[%clk 0:00:55]} 58... Rb5 {[%clk 0:09:50]} 59. Kg3 {[%clk 0:00:50]} 59... Rg5
{[%clk 0:09:40]} 60. Rg8+ {[%clk 0:00:34]} 60... Kf7 {[%clk 0:09:41]} 61. Ra8
{[%clk 0:00:34]} 61... h5 {[%clk 0:08:37]} 62. Ra7+ {[%clk 0:00:56]} 62... Ke6
{[%clk 0:07:24]} 63. Ra6+ {[%clk 0:01:19]} 63... Kf7 {[%clk 0:07:32]} 64. Ra7+
{[%clk 0:01:42]} 64... Kg6 {[%clk 0:07:19]} 65. Ra4 {[%clk 0:01:52]} 65... f5
{[%clk 0:04:05]} 66. Ra6+ {[%clk 0:02:08]} 66... Kf7 {[%clk 0:04:26]} 67. Ra7+
{[%clk 0:02:16]} 67... Ke6 {[%clk 0:04:25]} 68. Ra6+ {[%clk 0:02:40]} 68... Kd7
{[%clk 0:04:15]} 69. Ra7+ {[%clk 0:02:19]} 69... Kc6 {[%clk 0:03:48]} 70. Ra5
{[%clk 0:02:28]} 70... f4+ {[%clk 0:04:00]} 71. Kxf4 {[%clk 0:02:51]} 71... Rxa5
{[%clk 0:04:24]} 72. g5 {[%clk 0:03:16]} 72... Kd6 {[%clk 0:04:40]} 73. g6
{[%clk 0:03:39]} 0-1

[Variant "Standard"]
[Site "Europe Echecs"]

[Event "Championnat du monde jeunes U10"]
[Date "2024.11.19"]
[White "Iliev, Stoyan"]
[Black "Guntaka, Aayansh"]
[WhiteElo "1671"]
[BlackElo "1798"]
[Round "5.38"]
[Result "1-0"]
[TimeControl "5400+30"]

1. e4 {[%clk 1:30:56]} 1... e6 {[%clk 1:30:55]} 2. d4 {[%clk 1:31:21]} 2... d5
{[%clk 1:31:21]} 3. exd5 {[%clk 1:29:44]} 3... exd5 {[%clk 1:31:45]} 4. Be3
{[%clk 1:26:42]} 4... Bd6 {[%clk 1:31:57]} 5. Nf3 {[%clk 1:26:05]} 5... Ne7
{[%clk 1:32:17]} 6. Bd3 {[%clk 1:25:00]} 6... O-O {[%clk 1:32:39]} 7. O-O {[%clk
1:25:23]} 7... Bf5 {[%clk 1:33:01]} 8. Re1 {[%clk 1:20:32]} 8... Bxd3 {[%clk
1:29:27]} 9. Qxd3 {[%clk 1:20:53]} 9... Qd7 {[%clk 1:29:23]} 10. Nc3 {[%clk
1:18:47]} 10... c6 {[%clk 1:29:31]} 11. Bg5 {[%clk 1:17:03]} 11... f6 {[%clk
1:29:46]} 12. Bd2 {[%clk 1:15:03]} 12... Nf5 {[%clk 1:26:50]} 13. a3 {[%clk
1:13:42]} 13... Na6 {[%clk 1:26:43]} 14. b4 {[%clk 1:13:15]} 14... Nc7 {[%clk
1:27:09]} 15. Re2 {[%clk 1:12:05]} 15... a5 {[%clk 1:27:21]} 16. Na4 {[%clk
1:11:49]} 16... Ra6 {[%clk 1:24:49]} 17. bxa5 {[%clk 1:11:02]} 17... g6 {[%clk
1:17:41]} 18. Bb4 {[%clk 0:56:53]} 18... Ne6 {[%clk 1:14:20]} 19. g3 {[%clk
0:52:34]} 19... Nfg7 {[%clk 1:01:47]} 20. Rae1 {[%clk 0:41:13]} 20... g5 {[%clk
0:59:41]} 21. Nb6 {[%clk 0:28:37]} 21... Qe7 {[%clk 0:58:06]} 22. c3 {[%clk
0:28:11]} 22... f5 {[%clk 0:53:16]} 23. Ne5 {[%clk 0:25:32]} 23... f4 {[%clk
0:50:16]} 24. Nxc6 {[%clk 0:25:26]} 24... Qc7 {[%clk 0:43:58]} 25. Ne5 {[%clk
0:23:33]} 25... Bxb4 {[%clk 0:43:35]} 26. axb4 {[%clk 0:23:52]} 26... Qd6 {[%clk
0:43:24]} 27. Qb5 {[%clk 0:19:21]} 27... Rd8 {[%clk 0:38:57]} 28. Ng4 {[%clk
0:16:18]} 28... f3 {[%clk 0:27:42]} 29. Re3 {[%clk 0:16:07]} 29... h5 {[%clk
0:27:44]} 30. Nh6+ {[%clk 0:15:09]} 30... Kf8 {[%clk 0:27:35]} 31. Rxf3+ {[%clk
0:15:13]} 31... Nf4 {[%clk 0:27:55]} 32. gxf4 {[%clk 0:15:05]} 32... g4 {[%clk
0:28:10]} 33. Rfe3 {[%clk 0:08:45]} 33... Qxh6 {[%clk 0:28:08]} 34. Qc5+ {[%clk
0:07:15]} 34... Kg8 {[%clk 0:27:40]} 35. Qc7 {[%clk 0:07:02]} 35... Rf8 {[%clk
0:24:16]} 36. Nxd5 {[%clk 0:04:15]} 36... Rd6 {[%clk 0:23:20]} 37. Ne7+ {[%clk
0:04:07]} 37... Kh8 {[%clk 0:22:34]} 38. f5 {[%clk 0:02:58]} 38... Nxf5 {[%clk
0:18:25]} 39. Nxf5 {[%clk 0:03:22]} 39... Rxf5 {[%clk 0:18:46]} 40. Re8+ {[%clk
0:03:45]} 40... Rf8 {[%clk 0:19:12]} 41. Qxb7 {[%clk 0:02:13]} 41... Rf6 {[%clk
0:19:03]} 42. Qe7 {[%clk 0:00:52]} 42... Rxf2 {[%clk 0:18:11]} 43. a6 {[%clk
0:00:44]} 43... Qf4 {[%clk 0:15:40]} 44. Rxf8+ {[%clk 0:00:49]} 44... Qxf8
{[%clk 0:16:01]} 45. Qxf8+ {[%clk 0:01:15]} 45... Rxf8 {[%clk 0:16:24]} 46. b5
{[%clk 0:01:32]} 46... Rc8 {[%clk 0:16:45]} 47. a7 {[%clk 0:01:52]} 47... g3
{[%clk 0:17:09]} 48. hxg3 {[%clk 0:02:18]} 48... h4 {[%clk 0:17:30]} 49. gxh4
{[%clk 0:02:44]} 49... Rg8+ {[%clk 0:17:53]} 50. Kh2 {[%clk 0:03:08]} 50... Kh7
{[%clk 0:17:59]} 51. b6 {[%clk 0:03:31]} 51... Kh6 {[%clk 0:18:04]} 52. b7
{[%clk 0:03:56]} 52... Kg6 {[%clk 0:18:11]} 53. Rg1+ {[%clk 0:04:20]} 53... Kf5
{[%clk 0:18:31]} 54. Rxg8 {[%clk 0:04:45]} 54... Ke4 {[%clk 0:18:57]} 55. b8=Q
{[%clk 0:05:02]} 55... Kd3 {[%clk 0:19:21]} 56. Qb4 {[%clk 0:05:11]} 56... Ke3
{[%clk 0:19:38]} 57. Rg3+ {[%clk 0:05:08]} 57... Kf4 {[%clk 0:20:00]} 58. Qe7
{[%clk 0:05:24]} 58... Kf5 {[%clk 0:20:29]} 59. a8=Q {[%clk 0:05:31]} 59... Kf4
{[%clk 0:20:53]} 60. Qaf8# {[%clk 0:05:51]} 1-0

[Variant "Standard"]
[Site "Europe Echecs"]

[Event "Championnat du monde jeunes U10"]
[Date "2024.11.19"]
[White "Neuschild, Marius"]
[Black "Bartash, Saveli"]
[WhiteElo "1786"]
[BlackElo "1661"]
[Round "5.39"]
[Result "1-0"]
[TimeControl "5400+30"]

1. e4 {[%clk 1:30:59]} 1... c5 {[%clk 1:30:41]} 2. Nf3 {[%clk 1:31:22]} 2... d6
{[%clk 1:30:55]} 3. c3 {[%clk 1:31:50]} 3... Nf6 {[%clk 1:30:44]} 4. Be2 {[%clk
1:32:04]} 4... Bd7 {[%clk 1:27:37]} 5. Qc2 {[%clk 1:26:58]} 5... Nc6 {[%clk
1:24:42]} 6. d4 {[%clk 1:15:16]} 6... cxd4 7. cxd4 {[%clk 1:14:51]} 7... g6
{[%clk 1:17:57]} 8. O-O {[%clk 1:14:01]} 8... Bg7 {[%clk 1:17:26]} 9. Nc3 {[%clk
1:13:48]} 9... O-O {[%clk 1:16:58]} 10. h3 {[%clk 1:08:48]} 10... Rc8 {[%clk
1:14:11]} 11. Be3 {[%clk 1:07:06]} 11... Qc7 {[%clk 1:11:32]} 12. a3 {[%clk
1:05:18]} 12... Rfd8 {[%clk 1:09:04]} 13. Rac1 {[%clk 1:03:48]} 13... Qb8 {[%clk
1:07:16]} 14. Rfe1 {[%clk 1:00:34]} 14... a6 {[%clk 1:04:19]} 15. b4 {[%clk
0:55:30]} 15... e5 {[%clk 0:53:32]} 16. Red1 {[%clk 0:46:48]} 16... exd4 {[%clk
0:51:09]} 17. Nxd4 {[%clk 0:46:22]} 17... Nxd4 {[%clk 0:49:40]} 18. Bxd4 {[%clk
0:46:13]} 18... Bc6 {[%clk 0:48:32]} 19. Qb1 {[%clk 0:41:36]} 19... b5 {[%clk
0:44:57]} 20. Bf3 {[%clk 0:29:47]} 20... Qb7 {[%clk 0:42:29]} 21. Bxf6 Bxf6
{[%clk 0:41:11]} 22. Nd5 {[%clk 0:23:54]} 22... Bg5 {[%clk 0:39:16]} 23. Rc2
{[%clk 0:20:20]} 23... Bxd5 {[%clk 0:37:58]} 24. Rxd5 {[%clk 0:18:34]} 24...
Rxc2 {[%clk 0:37:00]} 25. Qxc2 {[%clk 0:18:53]} 25... Rc8 {[%clk 0:36:29]} 26.
Qd3 {[%clk 0:12:15]} 26... Rc1+ {[%clk 0:35:12]} 27. Kh2 {[%clk 0:12:11]} 27...
Qb6 {[%clk 0:34:36]} 28. Rxg5 {[%clk 0:07:19]} 28... Qxf2 {[%clk 0:34:28]} 29.
Qe2 {[%clk 0:05:48]} 29... Qg1+ {[%clk 0:31:28]} 30. Kg3 {[%clk 0:06:14]} 30...
Rc3 {[%clk 0:31:09]} 31. Rd5 {[%clk 0:05:00]} 31... Qb6 {[%clk 0:30:14]} 32. Qd2
{[%clk 0:04:43]} 32... Rxa3 {[%clk 0:29:07]} 33. Rxd6 {[%clk 0:03:50]} 33... Qc7
{[%clk 0:29:04]} 34. e5 {[%clk 0:04:00]} 34... Qe7 {[%clk 0:29:00]} 35. Qd4
{[%clk 0:03:16]} 35... Qg5+ {[%clk 0:27:23]} 36. Kh2 {[%clk 0:03:37]} 36... Qf5
{[%clk 0:24:40]} 37. Rd8+ {[%clk 0:03:31]} 37... Kg7 {[%clk 0:25:01]} 38. e6+
{[%clk 0:03:31]} 38... f6 {[%clk 0:25:00]} 39. e7 {[%clk 0:02:41]} 39... Rxf3
{[%clk 0:25:17]} 40. e8=Q {[%clk 0:01:36]} 40... Rxh3+ {[%clk 0:25:16]} 41. gxh3
{[%clk 0:01:43]} 41... Qc2+ {[%clk 0:25:38]} 42. Qd2 {[%clk 0:01:54]} 42... Qc7+
{[%clk 0:26:00]} 43. Rd6 {[%clk 0:02:11]} 1-0

[Variant "Standard"]
[Site "Europe Echecs"]

[Event "Championnat du monde jeunes U10"]
[Date "2024.11.19"]
[White "Zhou, Martin"]
[Black "Popov, Aleksandr And"]
[WhiteElo "1776"]
[BlackElo "1651"]
[Round "5.40"]
[Result "0-1"]
[TimeControl "5400+30"]

1. e4 {[%clk 1:30:58]} 1... e5 {[%clk 1:30:01]} 2. Nf3 {[%clk 1:31:09]} 2... Nc6
{[%clk 1:30:25]} 3. Bb5 {[%clk 1:31:33]} 3... a6 {[%clk 1:30:51]} 4. Ba4 {[%clk
1:31:55]} 4... Nf6 {[%clk 1:31:06]} 5. O-O {[%clk 1:32:12]} 5... Bc5 {[%clk
1:31:18]} 6. c3 {[%clk 1:32:17]} 6... b5 {[%clk 1:31:37]} 7. Bb3 {[%clk
1:32:33]} 7... d6 {[%clk 1:31:53]} 8. h3 {[%clk 1:32:18]} 8... O-O {[%clk
1:27:59]} 9. d4 {[%clk 1:29:07]} 9... Bb6 {[%clk 1:26:49]} 10. Bg5 {[%clk
1:25:01]} 10... h6 {[%clk 1:22:49]} 11. Bh4 {[%clk 1:25:24]} 11... g5 {[%clk
1:12:53]} 12. Bg3 {[%clk 1:22:59]} 12... Nxe4 {[%clk 1:08:53]} 13. Bd5 {[%clk
1:23:03]} 13... Nxg3 {[%clk 1:09:10]} 14. Bxc6 {[%clk 1:23:13]} 14... Nxf1
{[%clk 1:07:41]} 15. Bxa8 {[%clk 1:23:31]} 15... Bf5 {[%clk 1:07:12]} 16. Bd5
{[%clk 1:17:54]} 16... e4 {[%clk 1:06:40]} 17. Nh4 {[%clk 1:14:57]} 17... gxh4
{[%clk 1:05:30]} 18. Kxf1 {[%clk 1:11:21]} 18... Qf6 {[%clk 0:57:36]} 19. Qe2
{[%clk 0:44:03]} 19... Qg6 {[%clk 0:54:43]} 20. Nd2 {[%clk 0:36:01]} 20... Re8
{[%clk 0:51:56]} 21. Qe3 {[%clk 0:30:44]} 21... Qg5 {[%clk 0:44:19]} 22. Re1
{[%clk 0:29:18]} 22... Qxe3 {[%clk 0:42:09]} 23. Rxe3 {[%clk 0:29:30]} 23... c5
{[%clk 0:41:14]} 24. dxc5 {[%clk 0:18:47]} 24... Bxc5 {[%clk 0:41:34]} 25. Re1
{[%clk 0:17:16]} 25... e3 {[%clk 0:40:23]} 26. fxe3 {[%clk 0:10:56]} 26... Bxe3
{[%clk 0:39:16]} 27. Ke2 {[%clk 0:04:10]} 27... Bf4+ {[%clk 0:38:15]} 28. Kd1
{[%clk 0:03:32]} 28... Bc2+ {[%clk 0:38:35]} 29. Kxc2 {[%clk 0:03:34]} 29...
Rxe1 {[%clk 0:38:57]} 30. Bf3 {[%clk 0:03:17]} 30... Bxd2 {[%clk 0:39:10]} 31.
Kxd2 {[%clk 0:03:38]} 31... Rg1 {[%clk 0:39:03]} 32. Kc2 {[%clk 0:02:58]} 32...
Kg7 {[%clk 0:38:23]} 33. Kb3 {[%clk 0:03:15]} 33... a5 {[%clk 0:38:00]} 34. a4
{[%clk 0:03:02]} 34... bxa4+ {[%clk 0:38:24]} 35. Kxa4 {[%clk 0:03:27]} 35...
Ra1+ {[%clk 0:38:34]} 36. Kb3 {[%clk 0:03:49]} 36... a4+ {[%clk 0:38:29]} 37.
Kc2 {[%clk 0:04:06]} 37... a3 {[%clk 0:37:28]} 38. bxa3 {[%clk 0:03:55]} 38...
Rxa3 {[%clk 0:37:52]} 39. Kd3 {[%clk 0:04:20]} 39... Kf6 {[%clk 0:37:46]} 40.
Kd4 {[%clk 0:04:38]} 40... Ra2 {[%clk 0:37:34]} 41. Kd5 {[%clk 0:04:15]} 41...
Rd2+ {[%clk 0:37:52]} 42. Kc4 {[%clk 0:04:37]} 42... Ke5 {[%clk 0:38:12]} 43.
Kb5 {[%clk 0:03:38]} 43... d5 {[%clk 0:37:48]} 44. Kc5 {[%clk 0:03:52]} 44... d4
{[%clk 0:37:11]} 45. cxd4+ {[%clk 0:04:10]} 45... Rxd4 {[%clk 0:37:05]} 46. Bc6
{[%clk 0:04:04]} 46... Rd2 {[%clk 0:37:19]} 47. Bf3 {[%clk 0:04:25]} 47... Kf4
{[%clk 0:37:44]} 48. Kc4 {[%clk 0:04:39]} 48... Kg3 {[%clk 0:38:10]} 49. Kc3
{[%clk 0:04:49]} 49... Rxg2 {[%clk 0:38:30]} 50. Bxg2 {[%clk 0:05:06]} 50...
Kxg2 {[%clk 0:38:53]} 51. Kd2 {[%clk 0:05:31]} 51... Kxh3 {[%clk 0:39:13]} 52.
Ke1 {[%clk 0:05:56]} 52... Kg2 {[%clk 0:39:36]} 53. Ke2 {[%clk 0:06:15]} 53...
h3 {[%clk 0:39:59]} 54. Ke3 {[%clk 0:05:53]} 54... h2 {[%clk 0:40:21]} 55. Kf4
{[%clk 0:05:00]} 55... h1=Q {[%clk 0:40:26]} 0-1

[Variant "Standard"]
[Site "Europe Echecs"]

[Event "Championnat du monde jeunes U10"]
[Date "2024.11.19"]
[White "Montaigu Dupont, Arthur"]
[Black "Grimm, Jakob"]
[WhiteElo "1767"]
[BlackElo "1646"]
[Round "5.41"]
[Result "1-0"]
[TimeControl "5400+30"]

1. e4 {[%clk 1:30:59]} 1... e5 {[%clk 1:30:56]} 2. Nf3 {[%clk 1:31:25]} 2... Nc6
{[%clk 1:31:25]} 3. Bc4 {[%clk 1:31:41]} 3... Bc5 {[%clk 1:31:51]} 4. Nc3 {[%clk
1:32:06]} 4... d6 {[%clk 1:32:16]} 5. d3 {[%clk 1:30:27]} 5... Nf6 {[%clk
1:31:11]} 6. Na4 {[%clk 1:30:50]} 6... Bb6 {[%clk 1:31:36]} 7. a3 {[%clk
1:31:16]} 7... Qe7 {[%clk 1:28:00]} 8. O-O {[%clk 1:23:32]} 8... Bg4 {[%clk
1:28:09]} 9. h3 {[%clk 1:23:48]} 9... Bh5 {[%clk 1:28:34]} 10. c3 {[%clk
1:22:57]} 10... O-O-O {[%clk 1:27:08]} 11. Nxb6+ {[%clk 1:20:42]} 11... axb6
{[%clk 1:25:20]} 12. b4 {[%clk 1:21:03]} 12... h6 {[%clk 1:25:23]} 13. a4 {[%clk
1:20:05]} 13... g5 {[%clk 1:25:10]} 14. a5 {[%clk 1:16:17]} 14... b5 {[%clk
1:22:57]} 15. Bxb5 {[%clk 1:04:26]} 15... Na7 {[%clk 1:23:21]} 16. Bc4 {[%clk
1:04:46]} 16... g4 {[%clk 1:23:39]} 17. hxg4 {[%clk 1:04:58]} 17... Bxg4 {[%clk
1:21:14]} 18. b5 {[%clk 0:59:18]} 18... h5 {[%clk 1:20:31]} 19. Be3 {[%clk
0:59:26]} 19... c5 {[%clk 1:19:56]} 20. bxc6 {[%clk 0:58:41]} 20... Nxc6 {[%clk
1:20:08]} 21. a6 {[%clk 0:59:02]} 21... h4 {[%clk 1:19:03]} 22. axb7+ {[%clk
0:58:02]} 22... Kc7 {[%clk 1:19:20]} 23. Qb3 {[%clk 0:57:02]} 23... Nd7 {[%clk
1:19:29]} 24. Ra6 {[%clk 0:56:26]} 24... h3 {[%clk 1:17:59]} 25. Bb6+ {[%clk
0:56:49]} 25... Kb8 {[%clk 1:12:19]} 26. Rfa1 {[%clk 0:57:11]} 26... Nc5 {[%clk
1:06:34]} 27. Ra8+ {[%clk 0:55:12]} 27... Kxb7 {[%clk 1:06:52]} 28. Bxc5+ {[%clk
0:55:36]} 28... Kc7 {[%clk 1:07:12]} 29. R1a7+ {[%clk 0:55:20]} 29... Nxa7 30.
Rxa7+ {[%clk 0:55:42]} 30... Kc8 {[%clk 1:07:21]} 31. Ba6+ {[%clk 0:56:08]} 1-0

[Variant "Standard"]
[Site "Europe Echecs"]